Workbook

Sheet Registro
A1: TITULO | B1: ESTUDIO DE IMPACTO AMBIENTAL: PROCEDIMIENTO Y HERRAMIENTAS
A3: AUTORES | B3: ROBERTO PECHE GONZALEZ
B4: DOLORES ENCINAS MALAGON
B5: ZURIÑE GOMEZ DE BALUGERA LOPEZ DE ALDA
B6: MARIA ARRITOKIETA ORTUZAR IRAGORRI
A8: ISBN: | B8: 978-84-613-9696-2

Sheet 56-60
A1: nº de indicador: | B1: 56 | C1: función de transformación: | D1: CA=(-1E-4*I^2)+(4,17E-4*I)+1 | E1: 0<I<100
A2: Indicador: | B2: % de superficie alterada del entorno
A3: fórmula del indicador
A4: unidad del indicador:
A5: rango de valores del indicador: | B5: 0 -100 | C5: valor del indicador | D5: 90
A6: Tipo de indicador | B6: 2 (T=0,25) | C6: calidad ambiental | D6: =IF(D5<=0,"valor del indicador fuera de rango",IF(D5<=100,(-0.0001*(D5^2))+(0.000417*D5)+1,"valor del indicador fuera rango")) -> 0.228
A7: valor del indicador | B7: calidad ambiental | C7: representación de la función de transformación
A8: 0 | B8: =(-0.0001*(A8^2))+(0.000417*A8)+1 -> 1.000
A9: 5 | B9: =(-0.0001*(A9^2))+(0.000417*A9)+1 -> 1.000
A10: 10 | B10: 0.994
A11: 15 | B11: 0.984
A12: 20 | B12: 0.968
A13: 25 | B13: 0.948
A14: 30 | B14: 0.923
A15: 35 | B15: 0.892
A16: 40 | B16: 0.857
A17: 45 | B17: 0.816
A18: 50 | B18: 0.771
A19: 55 | B19: 0.720
A20: 60 | B20: 0.665
A21: 70 | B21: 0.539
A22: 80 | B22: 0.393
A23: 90 | B23: 0.228
A24: 100 | B24: 0.042
A27: nº de indicador: | B27: 57 | C27: función de transformación: | D27: CA= (1E-2*I) | E27: 0<I<100
A28: Indicador: | B28: Coeficiente medio de interés del factor topográfico ponderado por la superficie de zonas homogéneas (medio rural)
A29: fórmula del indicador
A30: unidad del indicador:
A31: rango de valores del indicador: | B31: 0 -100 | C31: valor del indicador | D31: 25
A32: Tipo de indicador | B32: 2 (T=0,25) | C32: calidad ambiental | D32: =IF(D31<=0,"valor del indicador fuera de rango",IF(D31<=100,(0.01*(D31)),"valor del indicador fuera rango")) -> 0.250
A33: valor del indicador | B33: calidad ambiental | C33: representación de la función de transformación
A34: 0 | B34: =0.01*A34 -> 0.000
A35: 5 | B35: 0.050
A36: 10 | B36: 0.100
A37: 15 | B37: 0.150
A38: 20 | B38: 0.200
A39: 25 | B39: 0.250
A40: 30 | B40: 0.300
A41: 35 | B41: 0.350
A42: 40 | B42: 0.400
A43: 45 | B43: 0.450
A44: 50 | B44: 0.500
A45: 55 | B45: 0.550
A46: 60 | B46: 0.600
A47: 65 | B47: 0.650
A48: 70 | B48: 0.700
A49: 75 | B49: 0.750
A50: 78 | B50: 0.780
A51: 80 | B51: 0.800
A52: 85 | B52: 0.850
A53: 90 | B53: 0.900
A54: 100 | B54: 1.000
A57: nº de indicador: | B57: 58 | C57: función de transformación: | D57: CA=0 | E57: 0<I<33
A58: Indicador: | B58: Coeficiente medio de interés del factor topográfico ponderado por la superficie de zonas homogéneas (medio urbano) | D58: CA=( 1,5E-2*I)-(4,99E-0,1) | E58: 33<I<100
A59: fórmula del indicador
A60: unidad del indicador:
A61: rango de valores del indicador: | B61: 0 -100 | C61: valor del indicador | D61: 20
A62: Tipo de indicador | B62: 2 (T=0,25) | C62: calidad ambiental | D62: =IF(D61<0,"valor del indicador fuera de rango",IF(D61<=33,0,IF(D61<=100,(0.015*(D61))-(0.499),"valor del indicador fuera rango"))) -> 0.000
A63: valor del indicador | B63: calidad ambiental | C63: representación de la función de transformación
A64: 0 | B64: =0 -> 0.000
A65: =A64+5 -> 5 | B65: =0 -> 0.000
A66: =A65+5 -> 10 | B66: =0 -> 0.000
A67: =A66+5 -> 15 | B67: =0 -> 0.000
A68: 20 | B68: =0 -> 0.000
A69: 25 | B69: =0 -> 0.000
A70: 30 | B70: =0 -> 0.000
A71: 35 | B71: =0.015*A71-0.499 -> 0.026
A72: 40 | B72: =0.015*A72-0.499 -> 0.101
A73: 45 | B73: 0.176
A74: 50 | B74: 0.251
A75: 55 | B75: 0.326
A76: 60 | B76: 0.401
A77: 65 | B77: 0.476
A78: 70 | B78: 0.551
A79: 75 | B79: 0.626
A80: 80 | B80: 0.701
A81: 82 | B81: 0.731
A82: =A80+5 -> 85 | B82: 0.776
A83: 90 | B83: 0.851
A84: 95 | B84: 0.926
A85: 100 | B85: 1.001
A88: nº de indicador: | B88: 59 | C88: función de transformación: | D88: CA= (-1E-4*I^2)+(2E-2I) | E88: 0<I<100
A89: Indicador: | B89: Coeficiente medio de interés del factor topográfico en relación a la situación "sin" proyecto (medio rural).
A90: fórmula del indicador
A91: unidad del indicador:
A92: rango de valores del indicador: | B92: 0 -100 | C92: valor del indicador | D92: 40
A93: Tipo de indicador | B93: 2 (T=0,25) | C93: calidad ambiental | D93: =IF(D92<0,"valor del indicador fuera de rango",IF(D92<=100,(-0.0001*(D92^2))+(0.02*D92),"valor del indicador fuera rango")) -> 0.640
A94: valor del indicador | B94: calidad ambiental | C94: representación de la función de transformación
A95: 0 | B95: =-0.0001*A95^2+0.02*A95 -> 0.000
A96: 5 | B96: =-0.0001*A96^2+0.02*A96 -> 0.098
A97: 10 | B97: 0.190
A98: 15 | B98: 0.278
A99: 20 | B99: 0.360
A100: 25 | B100: 0.438
A101: 30 | B101: 0.510
A102: 35 | B102: 0.578
A103: 40 | B103: 0.640
A104: 45 | B104: 0.698
A105: 50 | B105: 0.750
A106: 55 | B106: 0.798
A107: 60 | B107: 0.840
A108: 65 | B108: 0.878
A109: 70 | B109: 0.910
A110: 72 | B110: 0.922
A111: 75 | B111: 0.938
A112: 80 | B112: 0.960
A113: 85 | B113: 0.978
A114: 90 | B114: =-0.0001*A114^2+0.02*A114 -> 0.990
A115: 95 | B115: =-0.0001*A115^2+0.02*A115 -> 0.998
A116: 100 | B116: =-0.0001*A116^2+0.02*A116 -> 1.000
A119: nº de indicador: | B119: 60 | C119: función de transformación: | D119: CA=0 | E119: 0<I<40
A120: Indicador: | B120: Coeficiente medio de interés del factor topográfico en relación a la situación "sin" proyecto (medio urbano). | D120: CA= (-1,86E-4*I^2)+(4,26E-2I)-1,41 | E120: 40<I<100
A121: fórmula del indicador
A122: unidad del indicador:
A123: rango de valores del indicador: | B123: 0 -100 | C123: valor del indicador | D123: 60
A124: Tipo de indicador | B124: 2 (T=0,25) | C124: calidad ambiental | D124: =IF(D123<0,"valor del indicador fuera de rango",IF(D123<=40,0,IF(D123<=100,(-0.000186*(D123^2))+(0.0426*D123)-1.41,"valor del indicador fuera rango"))) -> 0.476
A125: valor del indicador | B125: calidad ambiental | C125: representación de la función de transformación
A126: 0 | B126: =0 -> 0.000
A127: 5 | B127: =0 -> 0.000
A128: 10 | B128: =0 -> 0.000
A129: 15 | B129: =0 -> 0.000
A130: 20 | B130: =0 -> 0.000
A131: 25 | B131: =0 -> 0.000
A132: 30 | B132: =0 -> 0.000
A133: 35 | B133: =0 -> 0.000
A134: 40 | B134: =0 -> 0.000
A135: 45 | B135: =-0.000186*A135^2+0.0426*A135-1.41 -> 0.130
A136: 50 | B136: =-0.000186*A136^2+0.0426*A136-1.41 -> 0.255
A137: 55 | B137: 0.370
A138: 60 | B138: 0.476
A139: 65 | B139: 0.573
A140: 70 | B140: 0.661
A141: 75 | B141: 0.739
A142: 80 | B142: 0.808
A143: 85 | B143: 0.867
A144: 90 | B144: 0.917
A145: 95 | B145: 0.958
A146: 98 | B146: 0.978
A147: 100 | B147: 0.990

Sheet 61
A1: nº de indicador: | B1: 61 | C1: función de transformación: | D1: CA=1 | E1: 0<I<75
A2: Indicador: | B2: Cantidad de recursos minerales afectados | D2: CA=(-1,6E-3*I^2) +(2,4E-1*I)-8 | E2: 75<I<100
A3: fórmula del indicador
A4: unidad del indicador:
A5: rango de valores del indicador: | B5: 0 -100 | C5: valor del indicador | D5: 80
A6: Tipo de indicador | B6: 2 (T=0,25) | C6: calidad ambiental | D6: =IF(D5<0,"valor del indicador fuera de rango",IF(D5<=75,1,IF(D5<=100,(-0.0016*(D5^2))+(0.24*D5)-8,"valor del indicador fuera rango"))) -> 0.960
A7: valor del indicador | B7: calidad ambiental | C7: representación de la función de transformación
A8: 0 | B8: =1 -> 1.000
A9: 10 | B9: =1 -> 1.000
A10: 20 | B10: =1 -> 1.000
A11: 30 | B11: =1 -> 1.000
A12: 40 | B12: =1 -> 1.000
A13: 50 | B13: =1 -> 1.000
A14: 55 | B14: =1 -> 1.000
A15: 60 | B15: =1 -> 1.000
A16: 65 | B16: =1 -> 1.000
A17: 70 | B17: =1 -> 1.000
A18: 75 | B18: =(-0.0016*A18^2) +(0.24*A18)-8 -> 1.000
A19: 80 | B19: 0.960
A20: 85 | B20: 0.840
A21: 90 | B21: 0.640
A22: 95 | B22: 0.360
A23: 100 | B23: 0.000

Sheet 62-66
A1: nº de indicador: | B1: 62 | C1: función de transformación: | D1: CA=(-1E-4*I^2)+(2E-2*I) | E1: 0<I<100
A2: Indicador: | B2: Recursos culturales equivalentes (recursos de interés nacional)
A3: fórmula del indicador
A4: unidad del indicador:
A5: rango de valores del indicador: | B5: 0 - 100 | C5: valor del indicador | D5: 50
A6: Tipo de indicador | B6: 2 (T=0,25) | C6: calidad ambiental | D6: =IF(D5<0,"valor del indicador fuera de rango",IF(D5<=100,(-0.0001*(D5^2))+(0.02*D5))) -> 0.750
A7: valor del indicador | B7: calidad ambiental | C7: representación de la función de transformación
A8: 0 | B8: =(-0.0001*A8^2)+(0.02*A8) -> 0.000
A9: =+A8+5 -> 5 | B9: 0.098
A10: =+A9+5 -> 10 | B10: 0.190
A11: 15 | B11: 0.278
A12: 20 | B12: 0.360
A13: 25 | B13: 0.438
A14: 30 | B14: 0.510
A15: 35 | B15: 0.578
A16: 40 | B16: 0.640
A17: 45 | B17: 0.698
A18: 50 | B18: 0.750
A19: 55 | B19: 0.798
A20: 60 | B20: 0.840
A21: 65 | B21: 0.878
A22: 70 | B22: 0.910
A23: 75 | B23: 0.938
A24: 80 | B24: 0.960
A25: 85 | B25: 0.978
A26: 90 | B26: 0.990
A27: 100 | B27: 1.000
A30: nº de indicador: | B30: 63 | C30: función de transformación: | D30: CA=0 | E30: 0<I<25
A31: Indicador: | B31: Recursos culturales equivalentes (recursos de interés regional) | D31: CA=(-1,77E-4*I^2)+(3,55E-2*I)-(7,76E-1) | E31: 25<I<100
A32: fórmula del indicador
A33: unidad del indicador:
A34: rango de valores del indicador: | B34: 0 - 100 | C34: valor del indicador | D34: 100
A35: Tipo de indicador | B35: 2 (T=0,25) | C35: calidad ambiental | D35: =IF(D34<0,"valor del indicador fuera de rango",IF(D34<=25,0,IF(D34<=100,(-0.000177*(D34^2))+(0.0355*D34)-(0.78),"valor del indicador fuera rango"))) -> 1.000
A36: valor del indicador | B36: calidad ambiental | C36: representación de la función de transformación
A37: 0 | B37: =0 -> 0.000
A38: 5 | B38: =0 -> 0.000
A39: =5+A38 -> 10 | B39: =0 -> 0.000
A40: =5+A39 -> 15 | B40: =0 -> 0.000
A41: 20 | B41: =0 -> 0.000
A42: 25 | B42: =(-0.000177*A42^2)+(0.0355*A42)-(0.776) -> 0.001
A43: 30 | B43: =(-0.000177*A43^2)+(0.0355*A43)-(0.776) -> 0.130
A44: 35 | B44: 0.250
A45: 40 | B45: 0.361
A46: 45 | B46: 0.463
A47: 50 | B47: 0.557
A48: 55 | B48: 0.641
A49: 60 | B49: 0.717
A50: 65 | B50: 0.784
A51: 70 | B51: 0.842
A52: 75 | B52: 0.891
A53: 80 | B53: 0.931
A54: 85 | B54: 0.963
A55: 90 | B55: 0.985
A56: 100 | B56: 1.000
A59: nº de indicador: | B59: 64 | C59: función de transformación: | D59: CA=0 | E59: 0<I<50
A60: Indicador: | B60: Recursos culturales equivalentes (recursos de interés local) | D60: CA=(-1,67E-4*I^2)+(4,5E-2*I)-1,83 | E60: 50<I<100
A61: fórmula del indicador
A62: unidad del indicador:
A63: rango de valores del indicador: | B63: 0 - 100 | C63: valor del indicador | D63: 15
A64: Tipo de indicador | B64: 2 (T=0,25) | C64: calidad ambiental | D64: =IF(D63<=0,"valor del indicador fuera de rango",IF(D63<=50,0,IF(D63<=100,-0.000167*D63^2+0.045*D63-1.83,"valor del indicador fuera rango"))) -> 0.000
A65: valor del indicador | B65: calidad ambiental | C65: representación de la función de transformación
A66: 0 | B66: 0.000
A67: 5 | B67: 0.000
A68: 10 | B68: 0.000
A69: 15 | B69: 0.000
A70: 20 | B70: 0.000
A71: 25 | B71: 0.000
A72: 30 | B72: 0.000
A73: 35 | B73: 0.000
A74: 40 | B74: 0.000
A75: 45 | B75: 0.000
A76: 50 | B76: 0.000
A77: 55 | B77: =(-0.000167*A77^2)+(0.045*A77)-1.83 -> 0.140
A78: 60 | B78: =(-0.000167*A78^2)+(0.045*A78)-1.83 -> 0.269
A79: 65 | B79: 0.389
A80: 70 | B80: 0.502
A81: 75 | B81: 0.606
A82: 80 | B82: 0.701
A83: 85 | B83: 0.788
A84: 90 | B84: 0.867
A85: 100 | B85: =(-0.000167*A85^2)+(0.045*A85)-1.83 -> 1.000
A88: nº de indicador: | B88: 65 | C88: función de transformación: | D88: CA=1E-2I | E88: 0<I<100
A89: Indicador: | B89: Rango medio del interés de los recursos culturales existentes (bajo rigor conservacionista) | D89: CA=1 | E89: I>100
A90: fórmula del indicador
A91: unidad del indicador:
A92: rango de valores del indicador: | B92: 0 - 100 | C92: valor del indicador | D92: 40
A93: Tipo de indicador | B93: 2 (T=0,25) | C93: calidad ambiental | D93: =IF(D92<0,"valor del indicador fuera de rango",IF(D92<=100,(0.01*(D92)))) -> 0.400
A94: valor del indicador | B94: calidad ambiental | C94: representación de la función de transformación
A95: 0 | B95: =0.01*A95 -> 0.000
A96: 5 | B96: =0.01*A96 -> 0.050
A97: 10 | B97: 0.100
A98: 15 | B98: 0.150
A99: 20 | B99: 0.200
A100: 25 | B100: 0.250
A101: 30 | B101: 0.300
A102: 35 | B102: 0.350
A103: 40 | B103: 0.400
A104: 45 | B104: 0.450
A105: 50 | B105: 0.500
A106: 55 | B106: 0.550
A107: 60 | B107: 0.600
A108: 65 | B108: 0.650
A109: 70 | B109: 0.700
A110: 75 | B110: 0.750
A111: 80 | B111: 0.800
A112: 90 | B112: 0.900
A113: 100 | B113: 1.000
A116: nº de indicador: | B116: 66 | C116: función de transformación: | D116: CA=0 | E116: 0<I<33
A117: Indicador: | B117: Rango medio del interés de los recursos culturales existentes (elevado rigor conservacionista) | D117: CA=(1,5E-2*I)-(4,99E-1) | E117: I<100
A118: fórmula del indicador
A119: unidad del indicador:
A120: rango de valores del indicador: | B120: 0 - 100 | C120: valor del indicador | D120: 50
A121: Tipo de indicador | B121: 2 (T=0,25) | C121: calidad ambiental | D121: =IF(D120<0,"valor del indicador fuera de rango",IF(D120<=33,0,IF(D120<=100,(0.015*(D120))-(0.499),"valor del indicador fuera rango"))) -> 0.251
A122: valor del indicador | B122: calidad ambiental | C122: representación de la función de transformación
A123: 0 | B123: =0 -> 0.000
A124: 5 | B124: =0 -> 0.000
A125: 10 | B125: =0 -> 0.000
A126: 15 | B126: =0 -> 0.000
A127: 20 | B127: =0 -> 0.000
A128: 25 | B128: =0 -> 0.000
A129: 30 | B129: =0 -> 0.000
A130: 35 | B130: =(0.015*A130)-(0.499) -> 0.026
A131: 40 | B131: =(0.015*A131)-(0.499) -> 0.101
A132: 45 | B132: 0.176
A133: 50 | B133: 0.251
A134: 55 | B134: 0.326
A135: 60 | B135: 0.401
A136: 65 | B136: 0.476
A137: 70 | B137: 0.551
A138: 75 | B138: 0.626
A139: 80 | B139: 0.701
A140: 90 | B140: 0.851
A141: 100 | B141: 1.001

Sheet 67-75
A1: nº de indicador: | B1: 67 | C1: función de transformación: | D1: CA=(-2,45E-2*I^2)-(2E-3*I)+1 | E1: 0<I<4
A2: Indicador: | B2: Conductividad del extracto saturado del suelo | D2: CA=(4,56E-3*I^2) -(1,41E-1*I)+1,09 | E2: 4<I<15
A3: fórmula del indicador
A4: unidad del indicador: | B4: ds m-1
A5: rango de valores del indicador: | B5: 0 -15 | C5: valor del indicador | D5: 5
A6: Tipo de indicador | B6: 2 (T=0,25) | C6: calidad ambiental | D6: =IF(D5<0,"valor del indicador fuera de rango",IF(D5<=4,(-0.0245*D5^2)-(0.002*D5)+1,IF(D5<=15,(0.00456*D5^2)-(0.141*D5)+1.09,"valor del indicador fuera rango"))) -> 0.499
A7: valor del indicador | B7: calidad ambiental | C7: representación de la función de transformación
A8: 0.0 | B8: =(-0.0245*A8^2)-(0.002*A8)+1 -> 1.000
A9: 0.5 | B9: =(-0.0245*A9^2)-(0.002*A9)+1 -> 0.993
A10: 1.0 | B10: 0.974
A11: 1.5 | B11: 0.942
A12: 2.0 | B12: 0.898
A13: 2.5 | B13: 0.842
A14: 3.0 | B14: 0.774
A15: 3.5 | B15: 0.693
A16: 4.0 | B16: =(0.00456*A16^2) -(0.141*A16)+1.09 -> 0.599
A17: 5.0 | B17: 0.499
A18: 6.0 | B18: 0.408
A19: 7.0 | B19: 0.326
A20: 8.0 | B20: 0.254
A21: 9.0 | B21: 0.190
A22: 10.0 | B22: 0.136
A23: 11.0 | B23: 0.091
A24: 12.0 | B24: 0.055
A25: 13.0 | B25: 0.028
A26: 14.0 | B26: 0.010
A27: 14.5 | B27: 0.004
A28: 15.0 | B28: 0.001
A31: nº de indicador: | B31: 68 | C31: función de transformación: | D31: CA=(-2,45E-2*I^2)-(2E-3*I)+1 | E31: 0<I<4
A32: Indicador: | B32: Conductividad del extracto saturado del suelo ponderado por la superficie de zonas homogéneas | D32: CA=(4,56E-3*I^2) -(1,41E-1*I)+1,09 | E32: 4<I<15
A33: fórmula del indicador
A34: unidad del indicador: | B34: ds m-1
A35: rango de valores del indicador: | B35: 0 -15 | C35: valor del indicador | D35: 6
A36: Tipo de indicador | B36: 2 (T=0,25) | C36: calidad ambiental | D36: =IF(D35<0,"valor del indicador fuera de rango",IF(D35<=4,(-0.0245*D35^2)-(0.002*D35)+1,IF(D35<=15,(0.00456*D35^2)-(0.141*D35)+1.09,"valor del indicador fuera rango"))) -> 0.408
A37: valor del indicador | B37: calidad ambiental | C37: representación de la función de transformación
A38: 0.0 | B38: =(-0.0245*A38^2)-(0.002*A38)+1 -> 1.000
A39: 0.5 | B39: =(-0.0245*A39^2)-(0.002*A39)+1 -> 0.993
A40: 1.0 | B40: 0.974
A41: 1.5 | B41: 0.942
A42: 2.0 | B42: 0.898
A43: 2.5 | B43: 0.842
A44: 3.0 | B44: 0.774
A45: 3.5 | B45: 0.693
A46: 4.0 | B46: =(0.00456*A46^2) -(0.141*A46)+1.09 -> 0.599
A47: 5.0 | B47: 0.499
A48: 6.0 | B48: 0.408
A49: 7.0 | B49: 0.326
A50: 8.0 | B50: 0.254
A51: 9.0 | B51: 0.190
A52: 10.0 | B52: 0.136
A53: 11.0 | B53: 0.091
A54: 12.0 | B54: 0.055
A55: 13.0 | B55: 0.028
A56: 14.0 | B56: 0.010
A57: 14.5 | B57: 0.004
A58: 15.0 | B58: 0.001
A61: nº de indicador: | B61: 69 | C61: función de transformación: | D61: CA=(6,25E-4*I^2)+(6,25E-2*I)+1,5 | E61: `-40<I<-20
A62: Indicador: | B62: % de variación de la salinidad con respecto a la natural | D62: CA=(1,25E-3*I^2)+1 | E62: `-20<I<20
A63: fórmula del indicador | D63: CA=(1,25E-3*I^2)-(1*E-1*I)+2 | E63: 20<I<40
A64: unidad del indicador:
A65: rango de valores del indicador: | B65: -40 - 40 | C65: valor del indicador | D65: 32
A66: Tipo de indicador | B66: 2 (T=0,25) | C66: calidad ambiental | D66: =IF(D65<(-40),"valor del indicador fuera de rango",IF(D65<=(-20),(0.000625*D65^2)+(0.0625*D65)+1.5,IF(D65<=20,(-0.00125*D65^2)+1,IF(D65<=40,(0.00125*D65^2)-(0.1*D65)+2,"valor del indicador fuera rango")))) -> 0.080
A67: valor del indicador | B67: calidad ambiental | C67: representación de la función de transformación
A68: -40 | B68: =(0.000625*A68^2)+(0.0625*A68)+1.5 -> 0.000
A69: =+A68+2 -> -38 | B69: 0.027
A70: =+A69+2 -> -36 | B70: 0.060
A71: -34 | B71: 0.098
A72: -32 | B72: 0.140
A73: -30 | B73: 0.188
A74: -28 | B74: 0.240
A75: -26 | B75: 0.298
A76: -24 | B76: 0.360
A77: -20 | B77: =(-0.00125*A77^2)+1 -> 0.500
A78: -16 | B78: =(-0.00125*A78^2)+1 -> 0.680
A79: -12 | B79: 0.820
A80: -8 | B80: 0.920
A81: 0 | B81: 1.000
A82: 4 | B82: 0.980
A83: 8 | B83: 0.920
A84: 16 | B84: 0.680
A85: 20 | B85: =(0.00125*A85^2)-(0.1*A85)+2 -> 0.500
A86: 28 | B86: =(0.00125*A86^2)-(0.1*A86)+2 -> 0.180
A87: 32 | B87: =(0.00125*A87^2)-(0.1*A87)+2 -> 0.080
A88: 40 | B88: =(0.00125*A88^2)-(0.1*A88)+2 -> 0.000
A91: nº de indicador: | B91: 70 | C91: función de transformación: | D91: CA=(4,37E-3*I^2)+1 | E91: 0<I<10,7
A92: Indicador: | B92: Proporción o cantidad relativa de sodio intercambiable(PSI) | D92: CA=(1,34E-3*I^2)-(8,05E-2*I)+1,21 | E92: 10,7<I<30
A93: fórmula del indicador | B93: % medio de sodio intercambiable
A94: unidad del indicador:
A95: rango de valores del indicador: | B95: 0 - 30 | C95: valor del indicador | D95: 15
A96: Tipo de indicador | B96: 2 (T=0,25) | C96: calidad ambiental | D96: =IF(D95<0,"valor del indicador fuera de rango",IF(D95<=10.7,(-0.00437*D95^2)+1,IF(D95<=30,(0.00134*D95^2)-(0.0805*D95)+1.21,"valor del indicador fuera rango"))) -> 0.304
A97: valor del indicador | B97: calidad ambiental | C97: representación de la función de transformación
A98: 0 | B98: =(-0.00437*A98^2)+1 -> 1.000
A99: 2 | B99: 0.983
A100: 4 | B100: 0.930
A101: 6 | B101: 0.843
A102: 8 | B102: 0.720
A103: 10 | B103: 0.563
A104: 10.7 | B104: =(0.00134*A104^2)-(0.0805*A104)+1.21 -> 0.502
A105: 11 | B105: 0.487
A106: 12 | B106: 0.437
A107: 13 | B107: 0.390
A108: 14 | B108: 0.346
A109: 15 | B109: 0.304
A110: 16 | B110: 0.265
A111: 18 | B111: 0.195
A112: 21 | B112: 0.110
A113: 22 | B113: 0.088
A114: 23 | B114: 0.067
A115: 24 | B115: 0.050
A116: 25 | B116: 0.035
A117: 27 | B117: 0.013
A118: 30 | B118: 0.001
A121: nº de indicador: | B121: 71 | C121: función de transformación: | D121: CA=-4,37E-3*I^2+1 | E121: 0<I<10,7
A122: Indicador: | B122: % medio de sodio intercambiable (PSI) ponderado según la superficie de zonas homogéneas. | D122: CA=(1,34E-3*I^2) -(8,05E-2*I) + 1,21 | E122: 10,7<I<30
A123: fórmula del indicador
A124: unidad del indicador:
A125: rango de valores del indicador: | B125: 0 - 30 | C125: valor del indicador | D125: 12
A126: Tipo de indicador | B126: 2 (T=0,25) | C126: calidad ambiental | D126: =IF(D125<0,"valor del indicador fuera de rango",IF(D125<=10.7,-0.00437*(D125^2)+1,IF(D125<=30,(0.00134*(D125^2))-(0.0805*D125)+1.21,"valor del indicador fuera rango"))) -> 0.437
A127: valor del indicador | B127: calidad ambiental | C127: representación de la función de transformación
A128: 0 | B128: =(-0.00437*A128^2)+1 -> 1.000
A129: 2 | B129: 0.983
A130: 4 | B130: 0.930
A131: 6 | B131: 0.843
A132: 8 | B132: 0.720
A133: 10 | B133: 0.563
A134: 10.7 | B134: =(0.00134*A134^2)-(0.0805*A134)+1.21 -> 0.502
A135: 11 | B135: 0.487
A136: 12 | B136: 0.437
A137: 13 | B137: 0.390
A138: 14 | B138: 0.346
A139: 15 | B139: 0.304
A140: 16 | B140: 0.265
A141: 17 | B141: 0.229
A142: 18 | B142: 0.195
A143: 19 | B143: 0.164
A144: 20 | B144: 0.136
A145: 22 | B145: 0.088
A146: 24 | B146: 0.050
A147: 26 | B147: 0.023
A148: 30 | B148: 0.001
A151: nº de indicador: | B151: 72 | C151: función de transformación: | D151: CA=0 | E151: 0<I<64
A152: Indicador: | B152: Nitrógeno en el suelo | D152: CA=(-6,1E-5*I^2) +(2,34E-2*I) -1,25 | E152: 64<I<192
A153: fórmula del indicador | B153: kg ha-1 | D153: CA=(1,36E-5*I^2)-(1,3E-2*I)+3 | E153: 192<I<384
A154: unidad del indicador:
A155: rango de valores del indicador: | B155: 0 - 384 | C155: valor del indicador | D155: 228
A156: Tipo de indicador | B156: 2 (T=0,25) | C156: calidad ambiental | D156: =IF(D155<0,"valor del indicador fuera de rango",IF(D155<=64,0,IF(D155<=192,(-0.000061*(D155^2))+(0.0234*D155)-1.25,IF(D155<=384,(0.0000136*D155^2)-(0.013*D155)+3,"valor del indicador fuera de rango")))) -> 0.743
A157: valor del indicador | B157: calidad ambiental | C157: representación de la función de transformación
A158: 0 | B158: 0.000
A159: =+A158+25 -> 25 | B159: 0.000
A160: 63 | B160: 0.000
A161: 64 | B161: 0.000
A162: =+A161+32 -> 96 | B162: =(-0.000061*(A162^2))+(0.0234*A162)-1.25 -> 0.434
A163: =+A162+32 -> 128 | B163: =(-0.000061*(A163^2))+(0.0234*A163)-1.25 -> 0.746
A164: =+A163+32 -> 160 | B164: =(-0.000061*(A164^2))+(0.0234*A164)-1.25 -> 0.932
A165: =+A164+32 -> 192 | B165: =(-0.000061*(A165^2))+(0.0234*A165)-1.25 -> 0.994
A166: 192 | B166: =(0.0000136*(A166^2))-(0.013*A166)+3 -> 1.005
A167: =+A166+25 -> 217 | B167: 0.819
A168: 242 | B168: 0.650
A169: 267 | B169: 0.499
A170: 292 | B170: 0.364
A171: 317 | B171: 0.246
A172: 342 | B172: 0.145
A173: 367 | B173: 0.061
A176: nº de indicador: | B176: 73 | C176: función de transformación: | D176: CA=0 | E176: 0<I<1
A177: Indicador: | B177: Índice GUS de contaminación del suelo por plaguicidas y pesticidas (suelos poco permeables). | D177: CA=(5,56E-1*I) -5,56E-1 | E177: 1<I<2,8
A178: fórmula del indicador | B178: log t1/2 * 4 [-log(Koc)]
A179: unidad del indicador:
A180: rango de valores del indicador: | B180: 0 - 2,8 | C180: valor del indicador | D180: 1.5
A181: Tipo de indicador | B181: 1 (T=0) | C181: calidad ambiental | D181: =IF(D180<0,"valor del indicador fuera de rango",IF(D180<=1,0,IF(D180<=2.8,(0.556*D180)-0.556,"valor del indicador fuera rango"))) -> 0.278
A182: valor del indicador | B182: calidad ambiental | C182: representación de la función de transformación
A183: 0.00 | B183: 0.000
A184: =+A183+0.15 -> 0.15 | B184: 0.000
A185: =+A184+0.15 -> 0.30 | B185: 0.000
A186: 0.45 | B186: 0.000
A187: 0.60 | B187: 0.000
A188: 0.75 | B188: 0.000
A189: 0.90 | B189: 0.000
A190: 1.00 | B190: =(0.556*A190)-0.556 -> 0.000
A191: 1.15 | B191: 0.083
A192: 1.30 | B192: 0.167
A193: 1.45 | B193: 0.250
A194: 1.60 | B194: 0.334
A195: 1.75 | B195: 0.417
A196: 1.90 | B196: 0.500
A197: 2.05 | B197: 0.584
A198: 2.20 | B198: 0.667
A199: 2.35 | B199: 0.751
A200: 2.50 | B200: 0.834
A201: 2.65 | B201: 0.917
A202: 2.70 | B202: 0.945
A203: 2.80 | B203: 1.001
A206: nº de indicador: | B206: 74 | C206: función de transformación: | D206: CA=0 | E206: 0<I<1,4
A207: Indicador: | B207: Índice GUS de contaminación del suelo por plaguicidas y pesticidas (suelos permeables). | D207: CA=1,13*I-1,58 | E207: 1,4<I<1,8
A208: fórmula del indicador | B208: log t1/2 * 4 [-log(Koc)] | D208: CA=(5,56E-1*I) -5,56E-1 | E208: 1,8<I<2,8
A209: unidad del indicador:
A210: rango de valores del indicador: | B210: 0 - 2,8 | C210: valor del indicador | D210: 2
A211: Tipo de indicador | B211: 1 (T=0) | C211: calidad ambiental | D211: =IF(D210<0,"valor del indicador fuera de rango",IF(D210<=1.4,0,IF(D210<=1.8,1.13*D210-1.58,IF(D210<=2.8,(0.556*D210)-0.556,"valor del indicador fuera rango")))) -> 0.556
A212: valor del indicador | B212: calidad ambiental | C212: representación de la función de transformación
A213: 0 | B213: 0.000
A214: 0.1 | B214: 0.000
... 55 more rows

Sheet 76-78
A1: nº de indicador: | B1: 76 | C1: función de transformación: | D1: CA=1E-2*I | E1: 0<I<100
A2: Indicador: | B2: Calidad media del suelo basada en su grado de evolución genética y estado de conservación
A3: fórmula del indicador
A4: unidad del indicador:
A5: rango de valores del indicador: | B5: 0 -100 | C5: valor del indicador | D5: 60
A6: Tipo de indicador | B6: 2 (T=0,25) | C6: calidad ambiental | D6: =IF(D5<0,"valor del indicador fuera de rango",IF(D5<=100,(0.01*D5))) -> 0.600
A7: valor del indicador | B7: calidad ambiental | C7: representación de la función de transformación
A8: 0 | B8: =0.01*A8 -> 0.000
A9: =+A8+6 -> 6 | B9: =0.01*A9 -> 0.060
A10: =+A9+6 -> 12 | B10: 0.120
A11: 18 | B11: 0.180
A12: 24 | B12: 0.240
A13: 30 | B13: 0.300
A14: 36 | B14: 0.360
A15: 42 | B15: 0.420
A16: 48 | B16: 0.480
A17: 54 | B17: 0.540
A18: 60 | B18: 0.600
A19: 66 | B19: 0.660
A20: 72 | B20: 0.720
A21: 78 | B21: 0.780
A22: 84 | B22: 0.840
A23: 90 | B23: 0.900
A24: 96 | B24: 0.960
A25: 100 | B25: 1.000
A28: nº de indicador: | B28: 77 | C28: función de transformación: | D28: CA=-1E-4*(I^2)+(2E-2*I) | E28: 0<I<100
A29: Indicador: | B29: Superficie de las clases agrológicas ponderada según productividad
A30: fórmula del indicador
A31: unidad del indicador:
A32: rango de valores del indicador: | B32: 0 -100 | C32: valor del indicador | D32: 40
A33: Tipo de indicador | B33: 2 (T=0,25) | C33: calidad ambiental | D33: =IF(D32<0,"valor del indicador fuera de rango",IF(D32<=100,(-0.0001*(D32^2)+(0.02*D32)))) -> 0.640
A34: valor del indicador | B34: calidad ambiental | C34: representación de la función de transformación
A35: 0 | B35: =-0.0001*(A35^2)+(0.02*A35) -> 0.000
A36: =+A35+5 -> 5 | B36: =-0.0001*(A36^2)+(0.02*A36) -> 0.098
A37: =+A36+5 -> 10 | B37: 0.190
A38: 15 | B38: 0.278
A39: 20 | B39: 0.360
A40: 25 | B40: 0.438
A41: 30 | B41: 0.510
A42: 35 | B42: 0.578
A43: 40 | B43: 0.640
A44: 45 | B44: 0.698
A45: 50 | B45: 0.750
A46: 55 | B46: 0.798
A47: 60 | B47: 0.840
A48: 65 | B48: 0.878
A49: 70 | B49: 0.910
A50: 75 | B50: 0.938
A51: 80 | B51: 0.960
A52: 85 | B52: 0.978
A53: 90 | B53: 0.990
A54: 95 | B54: 0.998
A55: 100 | B55: 1.000
A58: nº de indicador: | B58: 78 | C58: función de transformación: | D58: CA=-1E-4*(I^2)+(2E-2*I) | E58: 0<I<100
A59: Indicador: | B59: Superficie equivalente de clase agrológica I.
A60: fórmula del indicador
A61: unidad del indicador:
A62: rango de valores del indicador: | B62: 0 -100 | C62: valor del indicador | D62: 40
A63: Tipo de indicador | B63: 2 (T=0,25) | C63: calidad ambiental | D63: =IF(D62<0,"valor del indicador fuera de rango",IF(D62<=100,(-0.0001*(D62^2)+(0.02*D62)))) -> 0.640
A64: valor del indicador | B64: calidad ambiental | C64: representación de la función de transformación
A65: 0 | B65: =-0.0001*(A65^2)+(0.02*A65) -> 0.000
A66: =+A65+5 -> 5 | B66: =-0.0001*(A66^2)+(0.02*A66) -> 0.098
A67: =+A66+5 -> 10 | B67: 0.190
A68: 15 | B68: 0.278
A69: 20 | B69: 0.360
A70: 25 | B70: 0.438
A71: 30 | B71: 0.510
A72: 35 | B72: 0.578
A73: 40 | B73: 0.640
A74: 45 | B74: 0.698
A75: 50 | B75: 0.750
A76: 55 | B76: 0.798
A77: 60 | B77: 0.840
A78: 65 | B78: 0.878
A79: 70 | B79: 0.910
A80: 75 | B80: 0.938
A81: 80 | B81: 0.960
A82: 85 | B82: 0.978
A83: 90 | B83: 0.990
A84: 92 | B84: 0.994
A85: =+A83+5 -> 95 | B85: 0.998
A86: 100 | B86: 1.000
